[Event "56th Biel Festival Rapid 2023"]
[Site "Biel"]
[Date "2024.04.13"]
[Round "2.11"]
[White "Materia, Marco"]
[Black "Wilhelm, Serge"]
[Result "1-0"]
[WhiteElo "2436"]
[BlackElo "1959"]
[PlyCount "73"]
[EventDate "2023.07.16"]
[EventType "swiss"]
[EventCountry "SUI"]
[TimeControl "900+5"]

1. d4 {[%emt 0:00:02]} Nf6 {[%emt 0:00:02]} 2. c4 {[%emt 0:00:02]} e6 {[%emt 0:00:01]} 3. Nf3 {[%emt 0:00:01]} b6 {[%emt 0:00:01]} 4. g3 {[%emt 0:00:02]} Bb7 {[%emt 0:00:02]} 5. Bg2 {[%emt 0:00:02]} Be7 {[%emt 0:00:04]} 6. O-O {[%emt 0:00:02]} O-O {[%emt 0:00:02]} 7. Re1 {[%emt 0:00:02]} Na6 {[%emt 0:00:21]} 8. h4 {[%emt 0:00:05]} c5 {[%emt 0:00:46]} 9. d5 {[%emt 0:00:13]} exd5 {[%emt 0:00:38]} 10. Nh2 {[%emt 0:00:04]} Nc7 {[%emt 0:00:19]} 11. Nc3 {[%emt 0:00:08]} d6 {[%emt 0:00:27]} 12. cxd5 {[%emt 0:00:10]} Re8 {[%emt 0:00:18]} 13. e4 {[%emt 0:00:04]} Nd7 {[%emt 0:00:30]} 14. Bf4 {[%emt 0:00:28]} b5 {[%emt 0:00:49]} 15. Ng4 {[%emt 0:00:41]} f6 {[%emt 0:00:25]} 16. a4 {[%emt 0:02:45]} b4 {[%emt 0:00:53]} 17. Nb1 {[%emt 0:00:03]} Ne5 {[%emt 0:00:26]} 18. Bxe5 {[%emt 0:00:13]} fxe5 {[%emt 0:00:04]} 19. Nd2 {[%emt 0:00:02]} Rf8 {[%emt 0:01:08]} 20. Nc4 {[%emt 0:00:06]} Ba6 {[%emt 0:00:34]} 21. Rc1 {[%emt 0:01:02]} Qe8 {[%emt 0:00:19]} 22. Na5 {[%emt 0:01:23]} Bf6 {[%emt 0:02:11]} 23. Ne3 {[%emt 0:00:56]} Bc8 {[%emt 0:00:09]} 24. Nec4 {[%emt 0:00:14]} Be7 {[%emt 0:00:13]} 25. Nc6 {[%emt 0:00:12]} Bd7 {[%emt 0:00:28]} 26. N4xe5 {[%emt 0:01:30]} dxe5 {[%emt 0:00:12]} 27. Nxe7+ {[%emt 0:00:03]} Qxe7 {[%emt 0:00:02]} 28. d6 {[%emt 0:00:01]} Qd8 {[%emt 0:00:10]} 29. dxc7 {[%emt 0:00:02]} Qxc7 {[%emt 0:00:02]} 30. Qd5+ {[%emt 0:00:04]} Kh8 {[%emt 0:00:12]} 31. Rxc5 {[%emt 0:00:10]} Qb6 {[%emt 0:00:18]} 32. a5 {[%emt 0:00:20]} Qd8 {[%emt 0:00:35]} 33. Qxe5 {[%emt 0:00:10]} Ba4 {[%emt 0:00:12]} 34. Rc7 {[%emt 0:00:38]} Rg8 {[%emt 0:00:15]} 35. Qc5 {[%emt 0:03:30]} Qd2 {[%emt 0:00:13]} 36. Qc1 {[%emt 0:00:06]} Qd6 {[%emt 0:00:21]} 37. e5 {[%emt 0:00:00]} 1-0

[Event "56th Biel Festival Rapid 2023"]
[Site "Biel"]
[Date "2024.04.13"]
[Round "2.12"]
[White "Rosen, Eric"]
[Black "Alic, Miran"]
[Result "1-0"]
[WhiteElo "2344"]
[BlackElo "2011"]
[PlyCount "58"]
[EventDate "2023.07.16"]
[EventType "swiss"]
[EventCountry "SUI"]
[TimeControl "900+5"]

1. c4 {[%emt 0:00:03]} e6 {[%emt 0:00:01]} 2. Nc3 {[%emt 0:00:03]} d5 {[%emt 0:00:01]} 3. d4 {[%emt 0:00:02]} a6 {[%emt 0:00:01]} 4. cxd5 {[%emt 0:00:11]} exd5 {[%emt 0:00:02]} 5. Nf3 {[%emt 0:00:02]} h6 {[%emt 0:00:01]} 6. Bf4 {[%emt 0:00:15]} Nf6 {[%emt 0:00:07]} 7. e3 {[%emt 0:00:06]} Bd6 {[%emt 0:00:11]} 8. Be5 {[%emt 0:00:02]} Be6 {[%emt 0:00:20]} 9. Bd3 {[%emt 0:00:08]} Nc6 {[%emt 0:02:44]} 10. O-O {[%emt 0:00:30]} Ng4 {[%emt 0:03:08]} 11. Bxd6 {[%emt 0:02:05]} Qxd6 {[%emt 0:00:02]} 12. Rc1 {[%emt 0:00:03]} h5 {[%emt 0:01:25]} 13. Ne2 {[%emt 0:02:30]} Rh6 {[%emt 0:00:29]} 14. Nf4 {[%emt 0:00:20]} Rf6 {[%emt 0:01:17]} 15. h3 {[%emt 0:01:03]} O-O-O {[%emt 0:00:19]} 16. Qa4 {[%emt 0:00:42]} Ne7 {[%emt 0:01:08]} 17. Qa3 {[%emt 0:00:39]} Qxa3 {[%emt 0:03:04]} 18. bxa3 {[%emt 0:00:01]} Rh8 {[%emt 0:00:49]} 19. hxg4 {[%emt 0:01:54]} hxg4 {[%emt 0:00:02]} 20. Ng5 {[%emt 0:00:05]} Rfh6 {[%emt 0:00:09]} 21. f3 {[%emt 0:00:00]} g3 {[%emt 0:00:08]} 22. Nfh3 {[%emt 0:00:00]} Bxh3 {[%emt 0:01:03]} 23. Nxh3 {[%emt 0:00:03]} f6 {[%emt 0:00:05]} 24. f4 {[%emt 0:00:09]} g5 {[%emt 0:00:14]} 25. fxg5 {[%emt 0:00:31]} fxg5 {[%emt 0:00:01]} 26. Rf7 {[%emt 0:00:07]} Kd8 {[%emt 0:00:17]} 27. Rg7 {[%emt 0:00:17]} Re6 {[%emt 0:00:03]} 28. Re1 {[%emt 0:00:14]} Rh4 {[%emt 0:00:02]} 29. Nxg5 {[%emt 0:00:11]} Rb6 {[%emt 0:00:17]} 1-0

[Event "56th Biel Festival Rapid 2023"]
[Site "Biel"]
[Date "2024.04.13"]
[Round "2.14"]
[White "Rasovic, Dragan"]
[Black "Harikrishnan.A.Ra"]
[Result "0-1"]
[WhiteElo "2069"]
[BlackElo "2406"]
[PlyCount "148"]
[EventDate "2023.07.16"]
[EventType "swiss"]
[EventCountry "SUI"]
[TimeControl "900+5"]

1. d4 {[%emt 0:00:03]} Nf6 {[%emt 0:00:02]} 2. Nf3 {[%emt 0:00:05]} e6 {[%emt 0:00:06]} 3. c4 {[%emt 0:00:03]} d5 {[%emt 0:00:03]} 4. g3 {[%emt 0:00:03]} Bb4+ {[%emt 0:00:05]} 5. Bd2 {[%emt 0:00:02]} Be7 {[%emt 0:00:02]} 6. Bg2 {[%emt 0:00:05]} O-O {[%emt 0:00:02]} 7. O-O {[%emt 0:00:02]} c6 {[%emt 0:00:03]} 8. Qc2 {[%emt 0:00:29]} Nbd7 {[%emt 0:00:02]} 9. b3 {[%emt 0:00:27]} b6 {[%emt 0:00:10]} 10. Bc3 {[%emt 0:00:48]} Ba6 {[%emt 0:00:06]} 11. Nbd2 {[%emt 0:00:10]} Rc8 {[%emt 0:00:03]} 12. Rfe1 {[%emt 0:00:06]} c5 {[%emt 0:00:03]} 13. Ne5 {[%emt 0:00:57]} cxd4 {[%emt 0:00:24]} 14. Bxd4 {[%emt 0:00:05]} Nxe5 {[%emt 0:00:11]} 15. Bxe5 {[%emt 0:00:03]} Ng4 {[%emt 0:00:03]} 16. Bb2 {[%emt 0:00:19]} b5 {[%emt 0:00:22]} 17. h3 {[%emt 0:01:11]} Nf6 {[%emt 0:00:05]} 18. Rac1 {[%emt 0:00:22]} bxc4 {[%emt 0:00:11]} 19. bxc4 {[%emt 0:00:03]} dxc4 {[%emt 0:00:02]} 20. Qa4 {[%emt 0:00:21]} Qxd2 {[%emt 0:00:43]} 21. Bxf6 {[%emt 0:00:05]} Bxf6 {[%emt 0:00:04]} 22. Qxa6 {[%emt 0:00:03]} Rc7 {[%emt 0:00:14]} 23. e3 {[%emt 0:01:19]} c3 {[%emt 0:00:12]} 24. Be4 {[%emt 0:00:23]} g6 {[%emt 0:00:34]} 25. Red1 {[%emt 0:00:50]} Qb2 {[%emt 0:00:02]} 26. Bc2 {[%emt 0:00:25]} Rd7 {[%emt 0:00:29]} 27. Qa4 {[%emt 0:00:25]} Rd2 {[%emt 0:00:13]} 28. Rxd2 {[%emt 0:00:36]} cxd2 {[%emt 0:00:06]} 29. Rd1 {[%emt 0:00:05]} Qc3 {[%emt 0:04:13]} 30. Bb3 {[%emt 0:00:12]} a5 {[%emt 0:00:08]} 31. Qb5 {[%emt 0:03:15]} Rd8 {[%emt 0:00:17]} 32. Qa4 {[%emt 0:00:10]} Kg7 {[%emt 0:00:04]} 33. Qb5 {[%emt 0:00:03]} h6 {[%emt 0:01:02]} 34. Rf1 {[%emt 0:00:17]} Be7 {[%emt 0:01:25]} 35. Bd1 {[%emt 0:01:40]} Rd5 {[%emt 0:00:40]} 36. Qb3 {[%emt 0:00:04]} Qf6 {[%emt 0:00:26]} 37. Kg2 {[%emt 0:00:11]} Bb4 {[%emt 0:01:35]} 38. a4 {[%emt 0:00:42]} Rc5 {[%emt 0:00:11]} 39. Qd3 {[%emt 0:00:04]} Rc1 {[%emt 0:00:16]} 40. Qe4 {[%emt 0:00:23]} Qa1 {[%emt 0:00:09]} 41. Qf3 {[%emt 0:00:09]} Qc3 {[%emt 0:00:13]} 42. Qe2 {[%emt 0:00:02]} Qc6+ {[%emt 0:00:18]} 43. Kh2 {[%emt 0:00:02]} Qd5 {[%emt 0:00:11]} 44. Rg1 {[%emt 0:00:06]} Qc4 {[%emt 0:00:24]} 45. Qxc4 {[%emt 0:00:05]} Rxc4 {[%emt 0:00:01]} 46. Kg2 {[%emt 0:00:02]} Rc1 {[%emt 0:00:01]} 47. Kf3 {[%emt 0:00:04]} Kf6 {[%emt 0:00:03]} 48. Ke2 {[%emt 0:00:01]} Ke7 {[%emt 0:00:02]} 49. Rf1 {[%emt 0:00:03]} Kd6 {[%emt 0:00:03]} 50. Rg1 {[%emt 0:00:02]} Kc5 {[%emt 0:00:02]} 51. Rf1 {[%emt 0:00:01]} Kc4 {[%emt 0:00:04]} 52. Rg1 {[%emt 0:00:04]} Kc3 {[%emt 0:00:10]} 53. Rf1 {[%emt 0:00:05]} Kb2 {[%emt 0:00:03]} 54. Kd3 {[%emt 0:00:05]} e5 {[%emt 0:00:30]} 55. Rg1 {[%emt 0:00:06]} e4+ {[%emt 0:00:10]} 56. Ke2 {[%emt 0:00:02]} Ka3 {[%emt 0:00:12]} 57. Rf1 {[%emt 0:00:05]} Rb1 {[%emt 0:00:30]} 58. f3 {[%emt 0:00:09]} exf3+ {[%emt 0:00:19]} 59. Rxf3 {[%emt 0:00:01]} Rc1 {[%emt 0:00:19]} 60. Rxf7 {[%emt 0:00:04]} Rc6 {[%emt 0:00:01]} 61. Rf3 {[%emt 0:00:26]} Kb2 {[%emt 0:00:05]} 62. h4 {[%emt 0:00:15]} Re6 {[%emt 0:00:12]} 63. g4 {[%emt 0:00:12]} Kc1 {[%emt 0:00:14]} 64. Bb3 {[%emt 0:00:10]} Re7 {[%emt 0:00:21]} 65. Rf1+ {[%emt 0:00:08]} Kb2 {[%emt 0:00:01]} 66. Bd5 {[%emt 0:00:12]} Rd7 {[%emt 0:00:12]} 67. e4 {[%emt 0:00:09]} Kc3 {[%emt 0:00:03]} 68. h5 {[%emt 0:00:07]} gxh5 {[%emt 0:00:04]} 69. gxh5 {[%emt 0:00:06]} Rg7 {[%emt 0:00:05]} 70. Rf3+ {[%emt 0:00:02]} Kd4 {[%emt 0:00:10]} 71. Rf1 {[%emt 0:00:02]} Rg5 {[%emt 0:00:08]} 72. Rh1 {[%emt 0:00:04]} Rg3 {[%emt 0:00:06]} 73. Kd1 {[%emt 0:00:13]} Re3 {[%emt 0:00:05]} 74. Rg1 {[%emt 0:00:07]} Re1+ {[%emt 0:00:01]} 0-1

[Event "56th Biel Festival Rapid 2023"]
[Site "Biel"]
[Date "2024.04.13"]
[Round "2.15"]
[White "Huston, Gus"]
[Black "Tcheau, Alain"]
[Result "*"]
[WhiteElo "2341"]
[BlackElo "1985"]
[PlyCount "53"]
[EventDate "2023.07.16"]
[EventType "swiss"]
[EventCountry "SUI"]
[TimeControl "900+5"]

1. e4 {[%emt 0:09:33]} e5 {[%emt 0:00:06]} 2. Nf3 {[%emt 0:00:01]} d6 {[%emt 0:00:02]} 3. d4 {[%emt 0:00:05]} exd4 {[%emt 0:00:02]} 4. Nxd4 {[%emt 0:00:00]} Nc6 {[%emt 0:00:05]} 5. Nc3 {[%emt 0:00:00]} Bd7 {[%emt 0:00:09]} 6. Be3 {[%emt 0:00:01]} Nf6 {[%emt 0:00:05]} 7. f3 {[%emt 0:00:01]} Be7 {[%emt 0:00:24]} 8. Qd2 {[%emt 0:00:05]} O-O {[%emt 0:00:03]} 9. g4 {[%emt 0:00:01]} Nxd4 {[%emt 0:00:33]} 10. Bxd4 {[%emt 0:00:02]} a6 {[%emt 0:00:25]} 11. g5 {[%emt 0:00:12]} Nh5 {[%emt 0:00:27]} 12. h4 {[%emt 0:00:06]} Ng3 {[%emt 0:00:25]} 13. Rg1 {[%emt 0:00:00]} Nxf1 {[%emt 0:00:03]} 14. Rxf1 {[%emt 0:00:03]} f6 {[%emt 0:00:14]} 15. Nd5 {[%emt 0:00:21]} Be6 {[%emt 0:00:51]} 16. Nxe7+ {[%emt 0:00:03]} Qxe7 {[%emt 0:00:02]} 17. gxf6 {[%emt 0:00:01]} gxf6 {[%emt 0:00:14]} 18. Rg1+ {[%emt 0:00:07]} Kf7 {[%emt 0:00:29]} 19. Qh6 {[%emt 0:00:01]} Ke8 {[%emt 0:00:27]} 20. O-O-O {[%emt 0:00:25]} Kd7 {[%emt 0:00:12]} 21. Rg7 {[%emt 0:00:02]} Rf7 {[%emt 0:00:10]} 22. Bxf6 {[%emt 0:00:03]} Qf8 {[%emt 0:00:33]} 23. Rdg1 {[%emt 0:00:08]} Re8 {[%emt 0:00:31]} 24. Qxh7 {[%emt 0:00:10]} Ree7 {[%emt 0:02:52]} 25. Bxe7 {[%emt 0:00:08]} Kxe7 {[%emt 0:00:06]} 26. Rxf7+ {[%emt 0:00:04]} Bxf7 {[%emt 0:00:03]} 27. Rg7 {[%emt 0:00:02]} *

[Event "56th Biel Festival Rapid 2023"]
[Site "Biel"]
[Date "2024.04.13"]
[Round "2.16"]
[White "Habibi, Ali"]
[Black "Sibalic, Dragan"]
[Result "1-0"]
[WhiteElo "2171"]
[BlackElo "1902"]
[PlyCount "74"]
[EventDate "2023.07.16"]
[EventType "swiss"]
[EventCountry "SUI"]
[TimeControl "900+5"]

1. Nf3 {[%emt 0:00:06]} Nf6 {[%emt 0:00:03]} 2. g3 {[%emt 0:00:02]} d5 {[%emt 0:00:11]} 3. Bg2 {[%emt 0:00:02]} g6 {[%emt 0:00:07]} 4. O-O {[%emt 0:00:03]} Bg7 {[%emt 0:00:05]} 5. d3 {[%emt 0:00:05]} O-O {[%emt 0:00:02]} 6. Nbd2 {[%emt 0:00:02]} c6 {[%emt 0:00:04]} 7. e4 {[%emt 0:00:03]} Bg4 {[%emt 0:00:51]} 8. h3 {[%emt 0:00:02]} Bc8 {[%emt 0:00:15]} 9. Kh2 {[%emt 0:00:04]} Nbd7 {[%emt 0:00:18]} 10. e5 {[%emt 0:00:07]} Ne8 {[%emt 0:00:10]} 11. d4 {[%emt 0:00:01]} e6 {[%emt 0:00:01]} 12. c3 {[%emt 0:00:02]} c5 {[%emt 0:00:02]} 13. Ne1 {[%emt 0:00:07]} f5 {[%emt 0:00:07]} 14. f4 {[%emt 0:00:06]} Bh6 {[%emt 0:00:53]} 15. Ndf3 {[%emt 0:00:02]} Ng7 {[%emt 0:00:14]} 16. Be3 {[%emt 0:00:05]} b6 {[%emt 0:00:03]} 17. Rf2 {[%emt 0:00:07]} Rf7 {[%emt 0:00:08]} 18. a4 {[%emt 0:00:08]} a5 {[%emt 0:00:09]} 19. b3 {[%emt 0:00:11]} Ba6 {[%emt 0:00:06]} 20. Qd2 {[%emt 0:00:13]} Qe7 {[%emt 0:00:29]} 21. g4 {[%emt 0:00:09]} fxg4 {[%emt 0:00:43]} 22. hxg4 {[%emt 0:00:01]} Ne8 {[%emt 0:00:03]} 23. Bh3 {[%emt 0:00:19]} Nc7 {[%emt 0:01:12]} 24. Ng2 {[%emt 0:00:14]} Raf8 {[%emt 0:00:07]} 25. Rg1 {[%emt 0:00:11]} Kh8 {[%emt 0:00:06]} 26. f5 {[%emt 0:01:49]} Bxe3 {[%emt 0:00:11]} 27. Qxe3 {[%emt 0:00:28]} b5 {[%emt 0:01:14]} 28. f6 {[%emt 0:00:08]} Qd8 {[%emt 0:00:04]} 29. Qh6 {[%emt 0:00:10]} Nxf6 {[%emt 0:01:22]} 30. exf6 {[%emt 0:00:33]} Rxf6 {[%emt 0:00:12]} 31. Ng5 {[%emt 0:00:08]} Qe7 {[%emt 0:00:33]} 32. Rxf6 {[%emt 0:00:20]} Rxf6 {[%emt 0:00:03]} 33. Nh4 {[%emt 0:00:50]} Qg7 {[%emt 0:00:11]} 34. Qxg7+ {[%emt 0:00:48]} Kxg7 {[%emt 0:00:02]} 35. Ngf3 {[%emt 0:01:08]} h6 {[%emt 0:00:03]} 36. g5 {[%emt 0:00:29]} hxg5 {[%emt 0:00:46]} 37. Bg2 {[%emt 0:00:48]} Kh6 {[%emt 0:02:19]} 1-0

[Event "56th Biel Festival Rapid 2023"]
[Site "Biel"]
[Date "2024.04.13"]
[Round "2.17"]
[White "Vantika Agrawal"]
[Black "Chobaut, Nicolas"]
[Result "1-0"]
[WhiteElo "2428"]
[BlackElo "1919"]
[PlyCount "45"]
[EventDate "2023.07.16"]
[EventType "swiss"]
[EventCountry "SUI"]
[TimeControl "900+5"]

1. d4 {[%emt 0:00:03]} Nf6 {[%emt 0:00:06]} 2. c4 {[%emt 0:00:02]} e6 {[%emt 0:00:09]} 3. Nf3 {[%emt 0:00:02]} c5 {[%emt 0:00:10]} 4. d5 {[%emt 0:00:02]} exd5 {[%emt 0:00:05]} 5. cxd5 {[%emt 0:00:02]} d6 {[%emt 0:00:04]} 6. Nc3 {[%emt 0:00:02]} g6 {[%emt 0:00:04]} 7. g3 {[%emt 0:00:42]} Bg7 {[%emt 0:00:33]} 8. Bg2 {[%emt 0:00:01]} O-O {[%emt 0:00:09]} 9. O-O {[%emt 0:00:04]} Na6 {[%emt 0:01:18]} 10. Bf4 {[%emt 0:00:18]} Nc7 {[%emt 0:00:34]} 11. a4 {[%emt 0:00:03]} Nh5 {[%emt 0:01:59]} 12. Bg5 {[%emt 0:00:07]} Qe8 {[%emt 0:00:46]} 13. Re1 {[%emt 0:00:31]} h6 {[%emt 0:00:04]} 14. Bd2 {[%emt 0:00:06]} f5 {[%emt 0:00:48]} 15. e4 {[%emt 0:03:41]} fxe4 {[%emt 0:00:32]} 16. Nxe4 {[%emt 0:00:19]} Qd8 {[%emt 0:00:05]} 17. Nh4 {[%emt 0:00:11]} Kh7 {[%emt 0:02:55]} 18. Qc2 {[%emt 0:00:23]} Bf5 {[%emt 0:00:07]} 19. Nxf5 {[%emt 0:00:09]} gxf5 {[%emt 0:00:02]} 20. Nc3 {[%emt 0:00:10]} Kh8 {[%emt 0:00:47]} 21. Ne2 {[%emt 0:01:12]} Nf6 {[%emt 0:01:06]} 22. Nf4 {[%emt 0:00:05]} Kg8 {[%emt 0:01:42]} 23. Qxf5 {[%emt 0:00:10]} 1-0

[Event "56th Biel Festival Rapid 2023"]
[Site "Biel"]
[Date "2024.04.13"]
[Round "2.18"]
[White "Malli, Suvirr"]
[Black "Haimovich, Tal"]
[Result "0-1"]
[WhiteElo "2094"]
[BlackElo "2374"]
[PlyCount "102"]
[EventDate "2023.07.16"]
[EventType "swiss"]
[EventCountry "SUI"]
[TimeControl "900+5"]

1. e4 {[%emt 0:00:03]} e5 {[%emt 0:00:04]} 2. Nf3 {[%emt 0:00:02]} Nc6 {[%emt 0:00:01]} 3. Bc4 {[%emt 0:00:01]} Nf6 {[%emt 0:00:03]} 4. d3 {[%emt 0:00:02]} Be7 {[%emt 0:00:04]} 5. Nc3 {[%emt 0:00:06]} O-O {[%emt 0:00:04]} 6. O-O {[%emt 0:00:04]} d6 {[%emt 0:00:03]} 7. Nd5 {[%emt 0:00:36]} Be6 {[%emt 0:02:05]} 8. a4 {[%emt 0:00:14]} Bxd5 {[%emt 0:00:44]} 9. Bxd5 {[%emt 0:00:18]} Nxd5 {[%emt 0:00:25]} 10. exd5 {[%emt 0:00:02]} Nb4 {[%emt 0:00:24]} 11. c4 {[%emt 0:00:04]} f5 {[%emt 0:00:13]} 12. Ne1 {[%emt 0:00:55]} Bf6 {[%emt 0:00:24]} 13. Bd2 {[%emt 0:00:35]} Na6 {[%emt 0:00:09]} 14. Bc3 {[%emt 0:00:09]} Nc5 {[%emt 0:00:13]} 15. b4 {[%emt 0:00:11]} Nd7 {[%emt 0:00:01]} 16. Nc2 {[%emt 0:00:17]} Qe8 {[%emt 0:00:07]} 17. Ne3 {[%emt 0:00:35]} Qg6 {[%emt 0:00:05]} 18. f3 {[%emt 0:01:15]} Bg5 {[%emt 0:00:18]} 19. Qe2 {[%emt 0:00:17]} Nf6 {[%emt 0:00:30]} 20. d4 {[%emt 0:00:21]} Bxe3+ {[%emt 0:01:10]} 21. Qxe3 {[%emt 0:00:05]} e4 {[%emt 0:00:06]} 22. fxe4 {[%emt 0:01:36]} Nxe4 {[%emt 0:00:00]} 23. Rae1 {[%emt 0:00:17]} Rae8 {[%emt 0:00:10]} 24. Qd3 {[%emt 0:00:32]} Qg4 {[%emt 0:00:49]} 25. Bd2 {[%emt 0:00:38]} a6 {[%emt 0:02:37]} 26. a5 {[%emt 0:00:42]} Re7 {[%emt 0:01:16]} 27. Bc1 {[%emt 0:02:43]} Rfe8 {[%emt 0:00:13]} 28. Re3 {[%emt 0:00:47]} g6 {[%emt 0:01:24]} 29. Rfe1 {[%emt 0:00:50]} Kf7 {[%emt 0:00:04]} 30. b5 {[%emt 0:01:16]} Nf6 {[%emt 0:00:24]} 31. Rxe7+ {[%emt 0:00:07]} Rxe7 {[%emt 0:00:02]} 32. Rxe7+ {[%emt 0:00:03]} Kxe7 {[%emt 0:00:01]} 33. bxa6 {[%emt 0:00:24]} bxa6 {[%emt 0:00:01]} 34. h3 {[%emt 0:00:39]} Qe4 {[%emt 0:00:32]} 35. Qxe4+ {[%emt 0:00:02]} Nxe4 {[%emt 0:00:01]} 36. Be3 {[%emt 0:00:11]} g5 {[%emt 0:00:05]} 37. Kf1 {[%emt 0:00:23]} f4 {[%emt 0:00:15]} 38. Bc1 {[%emt 0:00:02]} Kf6 {[%emt 0:00:05]} 39. h4 {[%emt 0:00:08]} h6 {[%emt 0:00:07]} 40. hxg5+ {[%emt 0:00:05]} hxg5 {[%emt 0:00:01]} 41. Ke2 {[%emt 0:00:05]} Kf5 {[%emt 0:00:02]} 42. Kd3 {[%emt 0:00:14]} Nf6 {[%emt 0:00:22]} 43. Ba3 {[%emt 0:00:14]} Kg4 {[%emt 0:00:55]} 44. Ke2 {[%emt 0:00:08]} Kg3 {[%emt 0:00:12]} 45. Kf1 {[%emt 0:00:01]} Ne4 {[%emt 0:00:14]} 46. Bb4 {[%emt 0:00:05]} f3 {[%emt 0:00:16]} 47. gxf3 {[%emt 0:00:21]} Kxf3 {[%emt 0:00:01]} 48. c5 {[%emt 0:00:02]} g4 {[%emt 0:00:05]} 49. cxd6 {[%emt 0:00:17]} cxd6 {[%emt 0:00:01]} 50. Be1 {[%emt 0:00:04]} g3 {[%emt 0:00:13]} 51. Kg1 {[%emt 0:00:02]} Ng5 {[%emt 0:00:08]} 0-1

[Event "56th Biel Festival Rapid 2023"]
[Site "Biel"]
[Date "2024.04.13"]
[Round "2.19"]
[White "Toktomushev, Teimur"]
[Black "Zargarov, Mikayel"]
[Result "1-0"]
[WhiteElo "2206"]
[BlackElo "1951"]
[PlyCount "69"]
[EventDate "2023.07.16"]
[EventType "swiss"]
[EventCountry "SUI"]
[TimeControl "900+5"]

1. d4 {[%emt 0:00:03]} d5 {[%emt 0:00:00]} 2. c4 {[%emt 0:00:04]} e6 {[%emt 0:00:01]} 3. Nc3 {[%emt 0:00:01]} c6 {[%emt 0:00:01]} 4. e3 {[%emt 0:00:03]} Nf6 {[%emt 0:00:03]} 5. Nf3 {[%emt 0:00:02]} Be7 {[%emt 0:00:33]} 6. Bd3 {[%emt 0:00:30]} dxc4 {[%emt 0:00:09]} 7. Bxc4 {[%emt 0:00:01]} b5 {[%emt 0:00:01]} 8. Bd3 {[%emt 0:00:05]} Bb7 {[%emt 0:00:09]} 9. e4 {[%emt 0:01:00]} Nbd7 {[%emt 0:01:12]} 10. e5 {[%emt 0:06:02]} Nd5 {[%emt 0:00:07]} 11. Nxd5 {[%emt 0:01:33]} exd5 {[%emt 0:01:34]} 12. h4 {[%emt 0:01:30]} f6 {[%emt 0:05:03]} 13. exf6 {[%emt 0:01:28]} Bxf6 {[%emt 0:00:18]} 14. O-O {[%emt 0:01:02]} O-O {[%emt 0:01:14]} 15. Ng5 {[%emt 0:00:19]} Bxg5 {[%emt 0:00:19]} 16. hxg5 {[%emt 0:00:41]} g6 {[%emt 0:02:43]} 17. Qg4 {[%emt 0:00:29]} Qe8 {[%emt 0:00:44]} 18. Bf4 {[%emt 0:00:43]} Qf7 {[%emt 0:00:53]} 19. Bd6 {[%emt 0:00:20]} Nb6 {[%emt 0:00:55]} 20. Rae1 {[%emt 0:00:40]} Rfe8 {[%emt 0:00:32]} 21. f4 {[%emt 0:00:07]} Nc4 {[%emt 0:00:10]} 22. Be5 {[%emt 0:00:08]} Nxe5 {[%emt 0:00:02]} 23. dxe5 {[%emt 0:00:02]} Bc8 {[%emt 0:00:00]} 24. f5 {[%emt 0:00:02]} Bxf5 {[%emt 0:00:09]} 25. Bxf5 {[%emt 0:00:05]} gxf5 {[%emt 0:00:05]} 26. Rxf5 {[%emt 0:00:01]} Qg7 {[%emt 0:00:02]} 27. Rf6 {[%emt 0:00:04]} Re7 {[%emt 0:00:13]} 28. e6 {[%emt 0:00:14]} Rae8 {[%emt 0:00:02]} 29. Re5 {[%emt 0:00:02]} a5 {[%emt 0:00:08]} 30. Qf5 {[%emt 0:00:04]} b4 {[%emt 0:00:06]} 31. g6 {[%emt 0:00:07]} h6 {[%emt 0:00:06]} 32. Rf7 {[%emt 0:00:03]} Qh8 {[%emt 0:00:03]} 33. g7 {[%emt 0:00:05]} Qh7 {[%emt 0:00:07]} 34. Rf8+ {[%emt 0:00:05]} Kxg7 {[%emt 0:00:01]} 35. Qf6# {[%emt 0:00:01]} 1-0

[Event "56th Biel Festival Rapid 2023"]
[Site "Biel"]
[Date "2024.04.13"]
[Round "2.20"]
[White "Chervet, Olivier"]
[Black "Vincenti, Leonardo"]
[Result "0-1"]
[WhiteElo "1963"]
[BlackElo "2117"]
[PlyCount "67"]
[EventDate "2023.07.16"]
[EventType "swiss"]
[EventCountry "SUI"]
[TimeControl "900+5"]

1. d4 {[%emt 0:00:03]} d5 {[%emt 0:00:01]} 2. e3 {[%emt 0:00:03]} Nf6 {[%emt 0:00:03]} 3. Bd3 {[%emt 0:00:01]} e6 {[%emt 0:00:02]} 4. f4 {[%emt 0:00:08]} c5 {[%emt 0:00:03]} 5. c3 {[%emt 0:00:01]} Nc6 {[%emt 0:00:01]} 6. Nd2 {[%emt 0:00:29]} Bd6 {[%emt 0:00:11]} 7. Ngf3 {[%emt 0:00:03]} b6 {[%emt 0:00:05]} 8. Ne5 {[%emt 0:00:04]} Bb7 {[%emt 0:00:02]} 9. O-O {[%emt 0:00:20]} Qc7 {[%emt 0:00:11]} 10. Qf3 {[%emt 0:00:46]} O-O-O {[%emt 0:01:39]} 11. Qe2 {[%emt 0:01:17]} c4 {[%emt 0:00:32]} 12. Bc2 {[%emt 0:00:03]} Ne8 {[%emt 0:02:16]} 13. b3 {[%emt 0:01:34]} cxb3 {[%emt 0:00:07]} 14. axb3 {[%emt 0:00:12]} f6 {[%emt 0:00:55]} 15. Nxc6 {[%emt 0:00:53]} Bxc6 {[%emt 0:00:04]} 16. Qa6+ {[%emt 0:02:11]} Kb8 {[%emt 0:00:04]} 17. Nf3 {[%emt 0:00:12]} g5 {[%emt 0:00:29]} 18. fxg5 {[%emt 0:00:48]} fxg5 {[%emt 0:00:03]} 19. Nxg5 {[%emt 0:00:34]} Bxh2+ {[%emt 0:03:52]} 20. Kh1 {[%emt 0:00:02]} Rg8 {[%emt 0:00:42]} 21. Rf7 {[%emt 0:04:40]} Rd7 {[%emt 0:00:55]} 22. Rxd7 {[%emt 0:00:31]} Bxd7 {[%emt 0:00:55]} 23. e4 {[%emt 0:00:48]} Bc8 {[%emt 0:00:50]} 24. Qa4 {[%emt 0:00:26]} h6 {[%emt 0:01:11]} 25. e5 {[%emt 0:00:21]} Bg3 {[%emt 0:01:00]} 26. Bh7 {[%emt 0:00:37]} Rh8 {[%emt 0:00:22]} 27. Bg6 {[%emt 0:00:03]} hxg5+ {[%emt 0:00:02]} 28. Kg1 {[%emt 0:00:03]} Bh2+ {[%emt 0:00:17]} 29. Kf1 {[%emt 0:00:07]} Ng7 {[%emt 0:00:01]} 30. Bxg5 {[%emt 0:00:08]} Rf8+ {[%emt 0:00:01]} 31. Bf6 {[%emt 0:00:01]} Bd7 {[%emt 0:00:19]} 32. Qa3 {[%emt 0:00:07]} Bb5+ {[%emt 0:00:11]} 33. c4 {[%emt 0:00:05]} Rc8 {[%emt 0:00:12]} 34. cxb5 {[%emt 0:00:14]} 0-1